Workbook

Sheet Std Dev Prob
B2: £/$ | F2: Date/Exp>> | H2: €/£ | L2: Date/Exp>> | N2: £/$ | R2: Date/Exp>>
B3: Stock Price>> | C3: 13487 | F3: =TODAY() -> 2021-11-21 | H3: Stock Price>> | I3: 8555 | L3: =TODAY() -> 2021-11-21 | N3: Stock Price>> | O3: 13487 | R3: =TODAY() -> 2021-11-21
B4: Implied Volatility>> | C4: 0.07 | F4: 2021-11-19 | H4: Implied Volatility>> | I4: 0.07 | L4: 2021-11-26 | N4: Implied Volatility>> | O4: 0.07 | R4: 2021-12-15
B5: Sqrt DTE | C5: =SQRT(F5) -> 3 | F5: 9 | H5: Sqrt DTE | I5: =SQRT(L5) -> 4 | L5: 16 | N5: Sqrt DTE | O5: =SQRT(R5) -> 4.898979486 | R5: 24
B6: Sqrt 252 | C6: =SQRT(252) -> 15.87450787 | H6: Sqrt 252 | I6: =SQRT(252) -> 15.87450787 | N6: Sqrt 252 | O6: =SQRT(252) -> 15.87450787
B8: 1 SD | C8: =(C3*C4*C5)/C6 -> 178.4162397 | D8: Close Above Target | E8: Win Prob | H8: 1 SD | I8: =(I3*I4*I5)/I6 -> 150.8960164 | J8: Close Above Target | K8: Win Prob | N8: Prob of Price Expiring in Range
B9: Short Call Target Plus 1 SD | C9: =C3+C8 -> 13665.41624 | D9: =1-NORMSDIST(LN(C9/C3)/(C4*SQRT(F5/365))) -> 0.1159245311 | E9: =NORMSDIST(LN(C9/C3)/(C4*SQRT(F5/365))) -> 0.8840754689 | F9: =C9/C3-1 -> 0.01322875656 | H9: Short Call Target Plus 1 SD | I9: =I3+I8 -> 8705.896016 | J9: =1-NORMSDIST(LN(I9/I3)/(I4*SQRT(L5/365))) -> 0.1164328279 | K9: =NORMSDIST(LN(I9/I3)/(I4*SQRT(L5/365))) -> 0.8835671721 | L9: =I9/I3-1 -> 0.01763834207 | N9: Z Score/Std Devs | O9: Winning % Prob | P9: Lower Price | Q9: Upper Price | R9: Std Devs
D10: Close Below Target | E10: Win Prob | J10: Close Below Target | K10: Win Prob | N10: 3.29053 SD | O10: 0.999 | P10: =O3-R10 -> 12528.29586 | Q10: =O3+R10 -> 14445.70414 | R10: =3.29053*((O3*O4*O5)/O6) -> 958.7041396
B11: Short Put Target Minus 1 SD | C11: =C3-C8 -> 13308.58376 | D11: =NORMSDIST(LN(C11/C3)/(C4*SQRT(F5/365))) -> 0.1128458848 | E11: =1-NORMSDIST(LN(C11/C3)/(C4*SQRT(F5/365))) -> 0.8871541152 | F11: =C11/C3-1 -> -0.01322875656 | H11: Short Put Target Minus 1 SD | I11: =I3-I8 -> 8404.103984 | J11: =NORMSDIST(LN(I11/I3)/(I4*SQRT(L5/365))) -> 0.1123279415 | K11: =1-NORMSDIST(LN(I11/I3)/(I4*SQRT(L5/365))) -> 0.8876720585 | L11: =I11/I3-1 -> -0.01763834207 | N11: 3 SD | O11: 0.9974 | P11: =O3-R11 -> 12612.9425 | Q11: =O3+R11 -> 14361.0575 | R11: =3*((O3*O4*O5)/O6) -> 874.057498
N12: 2.57583 SD | O12: 0.99 | P12: =O3-R12 -> 12736.52549 | Q12: =O3+R12 -> 14237.47451 | R12: =2.57583*((O3*O4*O5)/O6) -> 750.4745084
B13: 2 SD | C13: =2*((C3*C4*C5)/C6) -> 356.8324793 | D13: Close Above Target | E13: Win Prob | H13: 2 SD | I13: =2*((I3*I4*I5)/I6) -> 301.7920329 | J13: Close Above Target | K13: Win Prob | N13: 2.326348 SD | O13: 0.98 | P13: =O3-R13 -> 12809.2127 | Q13: =O3+R13 -> 14164.7873 | R13: =2.326348*((O3*O4*O5)/O6) -> 677.7873041
B14: Short Call Target Plus 2 SD | C14: =C3+C13 -> 13843.83248 | D14: =1-NORMSDIST(LN(C14/C3)/(C4*SQRT(F5/365))) -> 0.008757623841 | E14: =NORMSDIST(LN(C14/C3)/(C4*SQRT(F5/365))) -> 0.9912423762 | F14: =C14/C3-1 -> 0.02645751311 | H14: Short Call Target Plus 2 SD | I14: =I3+I13 -> 8856.792033 | J14: =1-NORMSDIST(LN(I14/I3)/(I4*SQRT(L5/365))) -> 0.009002442684 | K14: =NORMSDIST(LN(I14/I3)/(I4*SQRT(L5/365))) -> 0.9909975573 | L14: =I14/I3-1 -> 0.03527668415 | N14: 2 SD | O14: 0.9544 | P14: =O3-R14 -> 12904.295 | Q14: =O3+R14 -> 14069.705 | R14: =2*((O3*O4*O5)/O6) -> 582.7049987
D15: Close Below Target | E15: Win Prob | J15: Close Below Target | K15: Win Prob | N15: 1.64485 SD | O15: 0.9 | P15: =O3-R15 -> 13007.76884 | Q15: =O3+R15 -> 13966.23116 | R15: =1.64485*((O3*O4*O5)/O6) -> 479.2311585
B16: Short Put Target Minus 2 SD | C16: =C3-C13 -> 13130.16752 | D16: =NORMSDIST(LN(C16/C3)/(C4*SQRT(F5/365))) -> 0.007355531254 | E16: =1-NORMSDIST(LN(C16/C3)/(C4*SQRT(F5/365))) -> 0.9926444687 | F16: =C16/C3-1 -> -0.02645751311 | H16: Short Put Target Minus 2 SD | I16: =I3-I13 -> 8253.207967 | J16: =NORMSDIST(LN(I16/I3)/(I4*SQRT(L5/365))) -> 0.007133264427 | K16: =1-NORMSDIST(LN(I16/I3)/(I4*SQRT(L5/365))) -> 0.9928667356 | L16: =I16/I3-1 -> -0.03527668415 | N16: 2.326348 SD | O16: 0.85 | P16: =O3-R16 -> 12809.2127 | Q16: =O3+R16 -> 14164.7873 | R16: =2.326348*((O3*O4*O5)/O6) -> 677.7873041
N17: 1.281551 SD | O17: 0.8 | P17: =O3-R17 -> 13113.61691 | Q17: =O3+R17 -> 13860.38309 | R17: =1.281551*((O3*O4*O5)/O6) -> 373.3830869
D18: Close Above Target | E18: Win Prob | J18: Close Above Target | K18: Win Prob | N18: 1.15035 SD | O18: 0.75 | P18: =O3-R18 -> 13151.84265 | Q18: =O3+R18 -> 13822.15735 | R18: =1.15035*((O3*O4*O5)/O6) -> 335.1573476
B19: Short Call Manual Target>> | C19: 13700 | D19: =1-NORMSDIST(LN(C19/C3)/(C4*SQRT(F5/365))) -> 0.07699824712 | E19: =NORMSDIST(LN(C19/C3)/(C4*SQRT(F5/365))) -> 0.9230017529 | H19: Short Call Manual Target>> | I19: 8700 | J19: =1-NORMSDIST(LN(I19/I3)/(I4*SQRT(L5/365))) -> 0.1257354336 | K19: =NORMSDIST(LN(I19/I3)/(I4*SQRT(L5/365))) -> 0.8742645664 | N19: 1.04 SD | O19: 0.7 | P19: =O3-R19 -> 13183.9934 | Q19: =O3+R19 -> 13790.0066 | R19: =1.04*((O3*O4*O5)/O6) -> 303.0065993
D20: Close Below Target | E20: Win Prob | J20: Close Below Target | K20: Win Prob | N20: 1 SD | O20: 0.6826 | P20: =O3-R20 -> 13195.6475 | Q20: =O3+R20 -> 13778.3525 | R20: =((O3*O4*O5)/O6) -> 291.3524993
B21: Short Put Manual Target>> | C21: 13400 | D21: =NORMSDIST(LN(C21/C3)/(C4*SQRT(F5/365))) -> 0.2780123882 | E21: =1-NORMSDIST(LN(C21/C3)/(C4*SQRT(F5/365))) -> 0.7219876118 | H21: Short Put Manual Target>> | I21: 8400 | J21: =NORMSDIST(LN(I21/I3)/(I4*SQRT(L5/365))) -> 0.1060945607 | K21: =1-NORMSDIST(LN(I21/I3)/(I4*SQRT(L5/365))) -> 0.8939054393 | N21: 0.934589 SD | O21: 0.65 | P21: =O3-R21 -> 13214.70516 | Q21: =O3+R21 -> 13759.29484 | R21: =0.934589*((O3*O4*O5)/O6) -> 272.294841
N22: 0.841621 SD | O22: 0.6 | P22: =O3-R22 -> 13241.79162 | Q22: =O3+R22 -> 13732.20838 | R22: =0.841621*((O3*O4*O5)/O6) -> 245.2083818
B23: 1 SD Short Strangle Prob | E23: =(0.5 * E9) + (0.5 * E11) -> 0.885614792 | H23: 1 SD Short Strangle Prob | K23: =(0.5 * K9) + (0.5 * K11) -> 0.8856196153 | N23: 0.755415 SD | O23: 0.55 | P23: =O3-R23 -> 13266.90795 | Q23: =O3+R23 -> 13707.09205 | R23: =0.755415*((O3*O4*O5)/O6) -> 220.0920483
B24: 2 SD Short Strangle Prob | E24: =(0.5 * E14) + (0.5 * E16) -> 0.9919434225 | H24: 2 SD Short Strangle Prob | K24: =(0.5 * K14) + (0.5 * K16) -> 0.9919321464 | N24: 0.67449 SD | O24: 0.5 | P24: =O3-R24 -> 13290.48565 | Q24: =O3+R24 -> 13683.51435 | R24: =0.67449*((O3*O4*O5)/O6) -> 196.5143473
B25: Manual Short Strangle Prob | E25: =(0.5 * E19) + (0.5 * E21) -> 0.8224946823 | H25: Manual Short Strangle Prob | K25: =(0.5 * K19) + (0.5 * K21) -> 0.8840850029 | N25: 0.597760 SD | O25: 0.45 | P25: =O3-R25 -> 13312.84113 | Q25: =O3+R25 -> 13661.15887 | R25: =0.59776*((O3*O4*O5)/O6) -> 174.15887
B27: DIA | F27: Date/Exp>> | H27: CL | L27: Date/Exp>> | N27: DIA | R27: Date/Exp>>
B28: Stock Price>> | C28: 36319 | F28: =TODAY() -> 2021-11-21 | H28: Stock Price>> | I28: 7920 | L28: =TODAY() -> 2021-11-21 | N28: Stock Price>> | O28: 35000 | R28: 2021-11-21
B29: Implied Volatility>> | C29: 0.17 | F29: 2021-12-16 | H29: Implied Volatility>> | I29: 0.4 | L29: 2021-11-19 | N29: Implied Volatility>> | O29: 0.17 | R29: 2021-12-17
B30: Sqrt DTE | C30: =SQRT(F30) -> 6.08276253 | F30: 37 | H30: Sqrt DTE | I30: =SQRT(L30) -> 1.414213562 | L30: 2 | N30: Sqrt DTE | O30: 2.65 | R30: 28
B31: Sqrt 252 | C31: =SQRT(252) -> 15.87450787 | H31: Sqrt 252 | I31: =SQRT(252) -> 15.87450787 | N31: Sqrt 252 | O31: 15.87
B33: 1 SD | C33: =(C28*C29*C30)/C31 -> 2365.829241 | D33: Close Above Target | E33: Win Prob | H33: 1 SD | I33: =(I28*I29*I30)/I31 -> 282.2278715 | J33: Close Above Target | K33: Win Prob | N33: Prob of Price Expiring in Range
B34: Short Call Target Plus 1 SD | C34: =C28+C33 -> 38684.82924 | D34: =1-NORMSDIST(LN(C34/C28)/(C29*SQRT(F30/365))) -> 0.1218223394 | E34: =NORMSDIST(LN(C34/C28)/(C29*SQRT(F30/365))) -> 0.8781776606 | F34: =C34/C28-1 -> 0.0651402638 | H34: Short Call Target Plus 1 SD | I34: =I28+I33 -> 8202.227871 | J34: =1-NORMSDIST(LN(I34/I28)/(I29*SQRT(L30/365))) -> 0.118493154 | K34: =NORMSDIST(LN(I34/I28)/(I29*SQRT(L30/365))) -> 0.881506846 | L34: =I34/I28-1 -> 0.03563483225 | N34: Z Score/Std Devs | O34: Winning % Prob | P34: Lower Price | Q34: Upper Price | R34: Std Devs
D35: Close Below Target | E35: Win Prob | J35: Close Below Target | K35: Win Prob | N35: 3.29053 SD | O35: 0.999 | P35: 31736.89 | Q35: 38263.11 | R35: 3263.11
B36: Short Put Target Minus 1 SD | C36: =C28-C33 -> 33953.17076 | D36: =NORMSDIST(LN(C36/C28)/(C29*SQRT(F30/365))) -> 0.1066599431 | E36: =1-NORMSDIST(LN(C36/C28)/(C29*SQRT(F30/365))) -> 0.8933400569 | F36: =C36/C28-1 -> -0.0651402638 | H36: Short Put Target Minus 1 SD | I36: =I28-I33 -> 7637.772129 | J36: =NORMSDIST(LN(I36/I28)/(I29*SQRT(L30/365))) -> 0.1101996802 | K36: =1-NORMSDIST(LN(I36/I28)/(I29*SQRT(L30/365))) -> 0.8898003198 | L36: =I36/I28-1 -> -0.03563483225 | N36: 3 SD | O36: 0.9974 | P36: 32025 | Q36: 37975 | R36: 2975
N37: 2.57583 SD | O37: 0.99 | P37: 32445.64 | Q37: 37554.36 | R37: 2554.36
B38: 2 SD | C38: =2*((C28*C29*C30)/C31) -> 4731.658482 | D38: Close Above Target | E38: Win Prob | H38: 2 SD | I38: =2*((I28*I29*I30)/I31) -> 564.4557429 | J38: Close Above Target | K38: Win Prob | N38: 2.326348 SD | O38: 0.98 | P38: 32693.04 | Q38: 37306.96 | R38: 2306.96
B39: Short Call Target Plus 2 SD | C39: =C28+C38 -> 41050.65848 | D39: =1-NORMSDIST(LN(C39/C28)/(C29*SQRT(F30/365))) -> 0.01182955387 | E39: =NORMSDIST(LN(C39/C28)/(C29*SQRT(F30/365))) -> 0.9881704461 | F39: =C39/C28-1 -> 0.1302805276 | H39: Short Call Target Plus 2 SD | I39: =I28+I38 -> 8484.455743 | J39: =1-NORMSDIST(LN(I39/I28)/(I29*SQRT(L30/365))) -> 0.01003339902 | K39: =NORMSDIST(LN(I39/I28)/(I29*SQRT(L30/365))) -> 0.989966601 | L39: =I39/I28-1 -> 0.07126966451 | N39: 2 SD | O39: 0.9544 | P39: 33016.67 | Q39: 36983.33 | R39: 1983.33
D40: Close Below Target | E40: Win Prob | J40: Close Below Target | K40: Win Prob | N40: 1.64485 SD | O40: 0.9 | P40: 33368.86 | Q40: 36631.14 | R40: 1631.14
B41: Short Put Target Minus 2 SD | C41: =C28-C38 -> 31587.34152 | D41: =NORMSDIST(LN(C41/C28)/(C29*SQRT(F30/365))) -> 0.004955812598 | E41: =1-NORMSDIST(LN(C41/C28)/(C29*SQRT(F30/365))) -> 0.9950441874 | F41: =C41/C28-1 -> -0.1302805276 | H41: Short Put Target Minus 2 SD | I41: =I28-I38 -> 7355.544257 | J41: =NORMSDIST(LN(I41/I28)/(I29*SQRT(L30/365))) -> 0.00626103845 | K41: =1-NORMSDIST(LN(I41/I28)/(I29*SQRT(L30/365))) -> 0.9937389615 | L41: =I41/I28-1 -> -0.07126966451 | N41: 2.326348 SD | O41: 0.85 | P41: 32693.04 | Q41: 37306.96 | R41: 2306.96
N42: 1.281551 SD | O42: 0.8 | P42: 33729.13 | Q42: 36270.87 | R42: 1270.87
D43: Close Above Target | E43: Win Prob | J43: Close Above Target | K43: Win Prob | N43: 1.15035 SD | O43: 0.75 | P43: 33859.24 | Q43: 36140.76 | R43: 1140.76
B44: Short Call Manual Target>> | C44: 38000 | D44: =1-NORMSDIST(LN(C44/C28)/(C29*SQRT(F30/365))) -> 0.2015978633 | E44: =NORMSDIST(LN(C44/C28)/(C29*SQRT(F30/365))) -> 0.7984021367 | H44: Short Call Manual Target>> | I44: 8000 | J44: =1-NORMSDIST(LN(I44/I28)/(I29*SQRT(L30/365))) -> 0.3671423829 | K44: =NORMSDIST(LN(I44/I28)/(I29*SQRT(L30/365))) -> 0.6328576171 | N44: 1.04 SD | O44: 0.7 | P44: 33968.67 | Q44: 36031.33 | R44: 1031.33
D45: Close Below Target | E45: Win Prob | J45: Close Below Target | K45: Win Prob | N45: 1 SD | O45: 0.6826 | P45: 34008.33 | Q45: 35991.67 | R45: 991.67
B46: Short Put Manual Target>> | C46: 34000 | D46: =NORMSDIST(LN(C46/C28)/(C29*SQRT(F30/365))) -> 0.1114175594 | E46: =1-NORMSDIST(LN(C46/C28)/(C29*SQRT(F30/365))) -> 0.8885824406 | H46: Short Put Manual Target>> | I46: 7600 | J46: =NORMSDIST(LN(I46/I28)/(I29*SQRT(L30/365))) -> 0.08182437786 | K46: =1-NORMSDIST(LN(I46/I28)/(I29*SQRT(L30/365))) -> 0.9181756221 | N46: 0.934589 SD | O46: 0.65 | P46: 34073.2 | Q46: 35926.8 | R46: 926.8
N47: 0.841621 SD | O47: 0.6 | P47: 34165.39 | Q47: 35834.61 | R47: 834.61
B48: 1 SD Short Strangle Prob | E48: =(0.5 * E34) + (0.5 * E36) -> 0.8857588588 | H48: 1 SD Short Strangle Prob | K48: =(0.5 * K34) + (0.5 * K36) -> 0.8856535829 | N48: 0.755415 SD | O48: 0.55 | P48: 34250.88 | Q48: 35749.12 | R48: 749.12
B49: 2 SD Short Strangle Prob | E49: =(0.5 * E39) + (0.5 * E41) -> 0.9916073168 | H49: 2 SD Short Strangle Prob | K49: =(0.5 * K39) + (0.5 * K41) -> 0.9918527813 | N49: 0.67449 SD | O49: 0.5 | P49: 34331.13 | Q49: 35668.87 | R49: 668.87
B50: Manual Short Strangle Prob | E50: =(0.5 * E44) + (0.5 * E46) -> 0.8434922887 | H50: Manual Short Strangle Prob | K50: =(0.5 * K44) + (0.5 * K46) -> 0.7755166196 | N50: 0.597760 SD | O50: 0.45 | P50: 34407.22 | Q50: 35592.78 | R50: 592.78
